bitfinex/quotes_ETHUSD_20220202
["timestamp","ask_amount","ask_price","bid_price","bid_amount"]
[1643793158904,1.53269425,2761.0,2760.4,0.3]
[1643793159107,0.37140987,2760.8,2760.4,0.3]
[1643793159307,0.37140987,2760.8,2760.1,3.4116]
[1643793159913,1.53285049,2760.7,2760.1,3.4116]
[1643793160209,1.71395049,2760.7,2759.9,5.21098215]
[1643793160411,1.53285049,2760.6,2759.9,5.51098215]
[1643793160809,0.37140987,2760.8,2759.9,5.51098215]
[1643793161009,1.53282431,2760.7,2759.9,5.51098215]
[1643793161211,0.1811,2760.8,2759.9,5.51098215]
[1643793161408,2.31542,2761.2,2759.9,5.51098215]
[1643793161409,1.53282099,2760.7,2759.9,5.51098215]
[1643793161610,0.1811,2761.1,2759.9,5.51098215]
[1643793161812,1.53281313,2761.0,2759.9,5.51098215]
[1643793162050,0.39415273,2760.9,2760.0,0.1811]
[1643793162259,0.39415273,2760.9,2760.0,1.08667]
[1643793162658,1.53277635,2760.8,2760.0,1.08667]
[1643793163057,1.83277635,2760.8,2760.0,1.08667]
[1643793163356,1.53277635,2760.7,2760.0,1.08667]
[1643793163956,1.53277635,2760.7,2760.0,0.1811]
[1643793164158,0.42831245,2760.4,2760.0,0.1811]
[1643793164962,0.3,2760.8,2760.0,0.1811]
[1643793165159,0.3,2760.8,2760.0,2.20632017]
[1643793165357,0.18092,2760.9,2760.0,0.1811]
[1643793165559,1.53279432,2760.8,2760.0,0.1811]
[1643793165796,1.83279432,2760.8,2760.0,0.1811]
[1643793165995,0.65720006,2760.8,2760.3,0.95300283]
[1643793166197,0.35720006,2760.8,2760.3,0.95300283]
[1643793166398,0.35720006,2760.8,2760.0,0.1811]
[1643793166594,0.35609067,2760.8,2760.0,0.1811]
[1643793167296,0.35609067,2760.8,2760.3,0.82932891]
[1643793167497,0.4811,2761.1,2760.3,0.82932891]
[1643793167498,0.66202,2761.1,2760.3,0.82932891]
[1643793167704,1.1345,2761.2,2760.4,2.1296146]
[1643793167705,1.53271186,2761.0,2760.4,2.1296146]
[1643793168002,0.1811,2761.4,2760.3,1.12932891]
[1643793168197,1.53262407,2761.3,2760.4,2.08862324]
[1643793168398,1.53262407,2761.3,2760.4,2.02804487]
[1643793168596,1.53262407,2761.3,2760.4,2.01816745]
[1643793168797,1.53262407,2761.3,2760.3,1.31042891]
[1643793169003,0.40795542,2761.0,2760.3,1.31042891]
[1643793169198,0.40795542,2761.0,2760.4,0.90545]
[1643793169399,0.40795542,2761.0,2760.3,1.31042891]
[1643793169661,0.40795542,2761.0,2760.3,0.4811]
[1643793169662,3.4794614,2760.9,2760.3,0.4811]
[1643793169860,0.40795542,2761.0,2760.2,0.43819997]
[1643793170064,1.53272747,2760.9,2760.2,0.13819997]
[1643793170861,1.83272747,2760.9,2760.2,0.13819997]
[1643793171059,2.21147227,2760.9,2760.2,0.13819997]
[1643793171261,0.43096065,2760.4,2760.2,0.13819997]
[1643793172060,0.1811,2761.0,2760.2,0.13819997]
[1643793172262,1.53276978,2760.9,2760.2,0.13819997]
[1643793172661,1.83276978,2760.9,2760.2,0.13819997]
[1643793172861,1.53277095,2760.8,2760.2,0.13819997]
[1643793173063,2.54757864,2761.0,2760.2,0.13819997]
[1643793173301,0.36620915,2760.6,2760.2,0.13819997]
[1643793175206,0.36620915,2760.6,2760.2,1.04368997]
[1643793175406,0.1811,2761.2,2760.2,1.04368997]
[1643793175610,5.52699303,2760.0,2759.9,4.14303906]
[1643793175820,5.52699303,2760.0,2759.9,1.16534906]
[1643793177259,5.52699303,2760.0,2759.9,3.37084906]
[1643793178064,0.1811,2761.2,2761.1,0.70419784]
[1643793178263,0.1809,2761.6,2761.1,1.078]
[1643793178457,0.68098593,2762.1,2761.1,1.078]
[1643793178458,1.53246407,2761.5,2761.1,1.078]
[1643793178758,0.1809,2762.0,2761.1,1.078]
[1643793178960,1.5324301,2761.9,2761.1,1.078]
[1643793179267,0.18092,2762.5,2761.1,1.078]
[1643793179268,0.1809,2761.8,2761.3,1.63986866]
[1643793179465,0.1809,2762.5,2761.4,3.2063]
[1643793179665,1.53211905,2762.4,2761.6,0.6334993]
[1643793179862,1.53211905,2762.4,2761.6,1.3501993]
[1643793180060,0.1809,2762.5,2761.6,1.5310993]
[1643793180264,0.1809,2762.5,2762.0,0.84486541]
[1643793180461,0.1809,2763.0,2762.0,2.77376541]
[1643793180660,1.90398593,2763.2,2762.0,3.07376541]
[1643793180661,1.53194521,2762.9,2762.0,3.07376541]
[1643793180905,1.71284521,2762.8,2762.0,1.324]
[1643793181113,1.53194521,2762.7,2762.0,2.4715]
[1643793181313,1.53194521,2762.7,2762.0,1.324]
[1643793181507,1.71284521,2762.6,2761.7,3.2165]
[1643793181710,1.71284521,2762.6,2761.7,3.5165]
[1643793181711,1.53194521,2762.5,2761.7,3.5165]
[1643793182009,0.38486215,2762.0,2761.7,3.5165]
[1643793183306,0.38486215,2762.0,2761.7,0.3]
[1643793183510,0.38486215,2762.0,2761.3,0.1809]
[1643793183511,1.53228791,2761.9,2761.3,0.1809]
[1643793183708,1.53228791,2761.9,2761.1,3.2815]
[1643793183709,2.01318791,2761.9,2761.1,3.5815]
[1643793183907,1.53228791,2761.8,2761.1,3.5815]
[1643793184761,0.33157082,2761.5,2761.1,3.5815]
[1643793185356,0.90533,2761.8,2761.1,3.5815]
[1643793185556,1.53237698,2761.7,2761.1,3.5815]
[1643793186160,0.4809,2761.9,2761.1,3.5815]
[1643793186360,1.53233321,2761.8,2761.1,4.2151441]
[1643793186564,0.1809,2762.0,2761.2,2.06551174]
[1643793186760,0.1809,2762.1,2761.2,3.30881174]
[1643793186965,0.42456353,2762.2,2761.2,3.30881174]
[1643793187161,1.53217116,2762.1,2761.2,3.30881174]
[1643793187560,0.42456353,2762.2,2761.3,0.85689961]
[1643793187760,0.42456353,2762.2,2761.3,1.15689961]
[1643793187962,0.42456353,2762.2,2761.4,2.03455123]
[1643793188161,0.42456353,2762.2,2761.4,3.57320243]
[1643793188406,0.42456353,2762.2,2761.4,3.87320243]
[1643793188802,0.42456353,2762.2,2761.4,3.23964123]
[1643793189002,1.53217145,2762.1,2761.4,1.20509]
[1643793189403,1.53217145,2762.1,2761.4,0.3]
[1643793189603,1.53217145,2762.1,2761.3,0.4809]
[1643793189809,1.53217145,2762.1,2761.3,0.1809]
[1643793190206,0.42456353,2762.2,2761.3,0.1809]
[1643793190407,0.1809,2762.5,2761.6,0.92623615]
[1643793190616,1.0027252,2763.1,2761.7,2.61806172]
[1643793190617,0.1809,2762.7,2761.7,2.61806172]
[1643793190813,0.0027252,2763.1,2761.8,1.1809]
[1643793190814,1.53195358,2762.6,2761.8,1.1809]
[1643793191010,1.53195358,2762.5,2762.0,1.5383097]
[1643793191212,0.68098593,2763.2,2762.0,1.7192097]
[1643793191213,0.1809,2763.1,2762.0,1.7192097]
[1643793191410,1.53192963,2763.0,2762.1,0.3]
[1643793191608,0.44686819,2762.3,2762.1,0.3]
[1643793193055,0.1809,2763.1,2762.1,2.32741096]
[1643793193259,1.53192542,2763.0,2762.3,1.2048]
[1643793193458,1.53192542,2763.0,2762.4,2.37979389]
[1643793193857,0.1809,2763.4,2762.4,2.56070389]
[1643793194056,1.531639,2763.3,2762.4,2.37979389]
[1643793194258,1.531639,2763.3,2762.6,1.1455312]
[1643793194958,1.531639,2763.3,2762.4,0.1809]
[1643793194959,1.531639,2763.3,2762.5,0.6332559]
[1643793195807,1.531639,2763.3,2762.4,0.1809]
[1643793195808,0.41273616,2762.8,2762.4,0.1809]
[1643793196005,0.1809,2763.2,2762.3,1.4677]
[1643793196207,1.53182211,2763.1,2762.3,1.4677]
[1643793196605,1.83182211,2763.1,2762.3,1.4677]
[1643793196806,1.53182211,2763.0,2762.3,1.4677]
[1643793197007,0.34068973,2762.9,2762.4,2.69516145]
[1643793197212,0.34068973,2762.9,2762.5,0.3]
[1643793198013,1.53188037,2762.8,2762.5,0.3]
[1643793198312,1.9767691,2763.4,2762.3,0.3]
[1643793198313,0.1809,2763.4,2762.3,0.3]
[1643793198512,1.53178291,2763.3,2762.1,1.6981]
[1643793198712,0.1809,2763.2,2762.2,2.53909324]
[1643793198911,1.53178291,2763.1,2762.3,0.1809]
[1643793199555,0.33857733,2762.9,2762.4,0.90479095]
[1643793199749,0.33857733,2762.9,2762.4,1.20479095]
[1643793199958,0.1809,2763.4,2762.4,1.20479095]
[1643793200159,1.53177506,2763.3,2762.4,1.20479095]
[1643793200361,0.1809,2763.2,2762.4,1.20479095]
[1643793200556,1.53177506,2763.1,2762.2,0.4809]
[1643793200757,1.53177506,2763.1,2762.2,0.1809]
[1643793201359,0.42108792,2762.8,2762.2,0.1809]
[1643793201655,0.42108792,2762.8,2762.2,0.97276214]
[1643793202155,0.41963296,2762.8,2762.2,0.97276214]
[1643793202356,0.1809,2763.2,2762.2,0.97276214]
[1643793202557,1.53181539,2763.1,2762.2,0.97276214]
[1643793202757,1.53181539,2763.0,2762.3,2.0429828]
[1643793202963,1.53181539,2763.0,2762.2,0.97276214]
[1643793203612,1.53181539,2763.0,2762.3,2.04494382]
[1643793203814,1.53181539,2763.0,2762.3,0.3]
[1643793204010,0.43821271,2762.9,2762.3,2.29728471]
[1643793204210,0.43821271,2762.9,2762.2,1.27276214]
[1643793204911,0.43821271,2762.9,2762.2,0.4809]
[1643793205310,0.43821271,2762.9,2762.2,0.1809]
[1643793205813,0.39095261,2762.3,2762.2,0.1809]
[1643793206016,0.1809,2763.0,2762.1,0.3]
[1643793206218,1.83187653,2762.9,2762.0,2.64617548]
[1643793206418,0.1809,2763.2,2762.6,0.85586416]
[1643793206622,0.1809,2763.2,2762.2,3.2739]
[1643793206623,1.53182361,2763.1,2762.2,3.2739]
[1643793206818,1.53182361,2763.1,2762.3,2.3045574]
[1643793207048,1.83182361,2763.1,2762.3,2.3045574]
[1643793207255,0.3,2763.1,2762.3,2.3045574]
[1643793207452,0.1809,2763.4,2762.3,2.3045574]
[1643793207453,0.1809,2763.4,2763.0,0.85481456]
[1643793207863,2.71433,2764.4,2763.0,1.15481456]
[1643793207864,0.1809,2763.8,2763.0,1.15481456]
[1643793208060,0.1809,2764.3,2763.0,3.99192456]
[1643793208254,1.53128106,2764.2,2763.1,3.1079]
[1643793208454,0.1809,2764.5,2763.1,3.1079]
[1643793208455,0.35528698,2763.5,2763.1,3.1079]
[1643793208654,0.35528698,2763.5,2763.0,1.4332]
[1643793209053,0.1809,2764.0,2763.0,1.4332]
[1643793209257,1.53149511,2763.9,2763.0,1.4332]
[1643793209862,1.53149511,2763.8,2763.0,1.4332]
[1643793210055,0.80635588,2764.0,2763.0,1.4332]
[1643793210056,1.53149511,2763.7,2763.0,1.4332]
[1643793210255,0.3,2763.7,2763.0,1.4332]
[1643793210454,1.53149511,2763.6,2763.0,1.4332]
[1643793210661,0.1809,2764.0,2763.0,0.3]
[1643793210910,1.53141862,2763.9,2763.1,2.03082465]
[1643793211113,1.53141862,2763.9,2763.0,0.18091]
[1643793211314,1.53141862,2763.8,2763.2,0.3994194]
[1643793211512,1.53141862,2763.8,2763.2,1.31121048]
[1643793211713,0.1809,2764.2,2763.3,2.00498084]
[1643793211918,0.91710733,2764.7,2763.3,3.16138084]
[1643793211919,1.53129145,2764.1,2763.3,3.16138084]
[1643793212112,0.68098593,2764.6,2763.3,4.16138084]
[1643793212113,1.71219145,2764.0,2763.3,4.16138084]
[1643793212312,1.53129145,2763.9,2763.3,4.16138084]
[1643793212516,0.1809,2764.5,2763.3,3.00498084]
[1643793212714,0.91710733,2764.7,2763.4,1.2357]
[1643793212715,0.37252718,2764.2,2763.4,1.2357]
[1643793212916,1.53124775,2764.1,2763.4,1.2357]
[1643793213116,1.53124775,2764.1,2763.4,1.5357]
[1643793213715,0.3,2764.0,2763.4,1.5357]
[1643793213915,1.53124775,2763.9,2763.4,1.5357]
[1643793214118,0.4487713,2763.6,2763.4,1.5357]
[1643793214318,0.4487713,2763.6,2763.4,0.3]
[1643793214571,0.1809,2764.3,2763.4,0.3]
[1643793214874,2.43590081,2764.2,2763.2,0.4809]
[1643793215070,1.71227081,2764.1,2763.1,1.0252986]
[1643793215271,1.53137081,2764.0,2763.1,1.0252986]
[1643793215471,0.1809,2763.9,2763.1,1.0252986]
[1643793215672,1.53137081,2763.8,2763.2,2.02705882]
[1643793216076,0.36401738,2764.2,2763.4,0.3507751]
[1643793216276,1.71223353,2764.1,2763.4,0.6507751]
[1643793216475,1.53133353,2764.0,2763.4,0.3]
[1643793216875,1.53133353,2764.0,2763.3,1.4295]
[1643793217279,1.83133353,2764.0,2763.3,1.4295]
[1643793217578,1.53133353,2763.9,2763.3,1.4295]
[1643793217784,0.1809,2764.1,2763.3,1.4295]
[1643793217978,1.53130534,2764.0,2763.3,1.4295]
[1643793218907,1.83130534,2764.0,2763.3,1.4295]
[1643793219206,1.53130534,2763.9,2763.3,1.4295]
[1643793219407,0.42838068,2763.6,2763.3,1.4295]
[1643793219608,0.3,2764.0,2763.1,1.0252986]
[1643793219809,0.1809,2764.1,2763.1,1.0252986]
[1643793219810,1.53132955,2763.9,2763.1,1.0252986]
[1643793220011,1.53132955,2763.8,2763.1,1.0252986]
[1643793220213,1.53132955,2763.7,2763.1,1.0252986]
[1643793220415,0.1809,2764.1,2763.1,1.0252986]
[1643793220612,0.34208712,2763.7,2763.1,1.0252986]
[1643793221815,0.1809,2764.1,2763.1,1.0252986]
[1643793222050,1.53132372,2764.0,2763.2,2.04617834]
[1643793222856,0.42844441,2763.9,2763.1,1.5482986]
[1643793223054,1.53132372,2763.8,2763.1,1.5482986]
[1643793225660,1.53132372,2763.8,2763.1,2.5482986]
[1643793226109,1.53132372,2763.7,2763.1,2.5482986]
[1643793226314,0.1809,2764.3,2763.1,2.5482986]
[1643793226512,1.5312978,2764.2,2763.1,2.5482986]
[1643793226714,0.1809,2764.1,2763.1,2.5482986]
[1643793226912,1.91176789,2764.0,2763.1,2.5482986]
[1643793227111,1.7121978,2763.9,2763.1,2.5482986]
[1643793227312,1.52971753,2763.8,2763.1,2.5482986]
[1643793227513,1.52971753,2763.8,2763.2,2.03311922]
[1643793227812,1.52971753,2763.8,2763.2,1.6330841]
[1643793228014,0.1809,2764.3,2763.2,1.6330841]
[1643793228217,0.1809,2764.3,2763.2,0.6330841]
[1643793228513,0.4223169,2764.1,2763.2,1.6330841]
[1643793228713,0.1809,2764.0,2763.2,1.6330841]
[1643793229115,0.1809,2764.0,2763.4,0.32856456]
[1643793229316,0.4223169,2764.1,2763.4,0.823]
[1643793231353,0.1809,2764.4,2763.4,0.823]
[1643793231559,0.1809,2764.4,2763.4,1.9514]
[1643793232358,0.43469781,2764.2,2763.4,1.9514]
[1643793235605,0.43469781,2764.2,2763.4,1.4284]
[1643793235805,0.1809,2764.1,2763.4,1.4284]
[1643793236611,0.35082711,2763.6,2763.4,1.4284]
[1643793236805,0.35082711,2763.6,2763.4,0.3]
[1643793237258,0.1809,2764.2,2763.2,0.4809]
[1643793237459,0.1809,2764.2,2763.2,0.1809]
[1643793237658,0.86188593,2764.2,2763.2,0.1809]
[1643793237862,0.1809,2764.2,2763.2,0.1809]
[1643793238259,0.38761809,2763.6,2763.2,0.1809]
[1643793240262,0.38761809,2763.6,2762.8,3.48577352]
[1643793241906,0.38761809,2763.6,2762.8,5.46882436]
[1643793242108,0.1809,2763.8,2762.8,5.46882436]
[1643793242306,0.1809,2764.1,2762.9,0.1809]
[1643793242806,0.1809,2764.2,2762.9,0.1809]
[1643793243205,0.1809,2764.2,2763.0,0.90449]
[1643793243406,0.1809,2764.2,2763.1,2.01592607]
[1643793243706,0.38160614,2764.0,2763.4,0.94057721]
[1643793244106,0.38160614,2764.0,2763.4,1.24057721]
[1643793245157,0.1809,2764.2,2763.4,1.24057721]
[1643793246356,1.2861943,2764.3,2763.4,1.24057721]
[1643793247362,1.53120489,2764.2,2763.4,1.24057721]
[1643793247562,2.21219082,2764.2,2763.4,1.24057721]
[1643793249300,1.53120489,2764.2,2763.4,1.24057721]
[1643793250202,1.53120489,2764.1,2763.4,1.24057721]
[1643793250403,1.53120489,2764.0,2763.4,1.24057721]
[1643793250600,1.53120489,2763.9,2763.4,1.24057721]
[1643793250801,1.53120489,2763.8,2763.4,1.24057721]
[1643793251104,2.21219082,2764.3,2763.4,1.24057721]
[1643793251301,1.53109911,2764.2,2763.4,1.24057721]
[1643793251602,1.53109911,2764.1,2763.4,1.24057721]
[1643793251802,1.53109911,2764.0,2763.4,1.24057721]
[1643793252049,1.53109911,2763.9,2763.4,1.24057721]
[1643793252259,1.53109911,2763.8,2763.4,1.65198693]
[1643793252457,1.53109911,2763.7,2763.4,1.65198693]
[1643793252654,1.53109911,2763.6,2763.4,1.65198693]
[1643793252854,0.68098593,2764.2,2763.5,0.18091]
[1643793253054,0.86188593,2764.3,2763.5,2.22209583]
[1643793253253,1.53107998,2764.2,2763.5,3.52209583]
[1643793253455,1.53107998,2764.1,2763.5,1.48091]
[1643793253658,1.53107998,2764.0,2763.5,1.48091]
[1643793253854,1.53107998,2763.9,2763.5,1.48091]
[1643793254055,1.53107998,2763.8,2763.5,1.48091]
[1643793254256,1.53107998,2763.7,2763.5,0.3]
[1643793254456,1.53107998,2763.6,2763.5,0.3]
[1643793254654,1.53107998,2763.6,2763.4,2.65198693]
[1643793254864,1.53107998,2763.5,2763.4,1.65198693]
[1643793255255,0.68098593,2764.1,2763.4,1.65198693]
[1643793255455,1.53107998,2764.0,2763.4,1.65198693]
[1643793255656,1.53107998,2763.9,2763.4,0.71140972]
[1643793255907,1.53107998,2763.8,2763.4,0.71140972]
[1643793256106,1.53107998,2763.7,2763.4,0.71140972]
[1643793256309,1.53107998,2763.6,2763.2,1.965598]
[1643793256509,1.53107998,2763.5,2763.2,0.1809]
[1643793256711,1.53107998,2763.4,2763.1,0.1809]
[1643793256911,1.53107998,2763.3,2763.0,0.88821858]
[1643793257112,0.68098593,2764.0,2763.0,0.88821858]
[1643793257312,1.60419046,2764.1,2763.0,0.88821858]
[1643793257517,0.39620122,2763.8,2763.0,0.88821858]
[1643793257714,1.53125313,2763.7,2763.0,0.88821858]
[1643793257915,1.53125313,2763.7,2763.1,0.9045]
[1643793258312,1.53125313,2763.7,2763.0,0.88821858]
[1643793258513,1.53125313,2763.7,2763.0,0.4809]
[1643793258714,1.53125313,2763.7,2763.0,0.1809]
[1643793259113,0.39620122,2763.8,2763.0,0.1809]
[1643793259551,0.39620122,2763.8,2763.0,1.08541]
[1643793260165,0.68098593,2763.7,2763.0,0.1809]
[1643793260758,1.37718715,2763.8,2762.8,1.7271]
[1643793260960,0.68098593,2763.7,2762.8,1.7271]
[1643793261358,0.68098593,2763.8,2762.8,1.7271]
[1643793261960,0.68098593,2763.7,2762.8,1.7271]
[1643793262363,0.42296268,2763.3,2762.8,1.7271]
[1643793262563,0.68098593,2763.8,2762.8,1.7271]
[1643793262962,0.68098593,2763.8,2762.8,2.63169]
[1643793263603,0.42541181,2763.5,2762.8,2.63169]
[1643793268369,0.42541181,2763.5,2762.8,2.45079]
[1643793269172,2.94922593,2763.9,2762.8,4.17949813]
[1643793269372,2.04458593,2763.9,2763.0,0.90454]
[1643793269570,1.16188593,2763.9,2763.0,1.20454]
[1643793269972,1.16188593,2763.9,2763.0,2.5729907]
[1643793270372,1.53771682,2763.9,2763.2,0.32105214]
[1643793270577,1.53771682,2763.9,2763.3,0.90449]
[1643793270578,1.35681682,2763.9,2763.3,0.90449]
[1643793270803,1.35681682,2763.9,2763.3,2.0556264]
[1643793271702,1.05681682,2763.9,2763.3,1.20449]
[1643793272706,0.37583089,2763.9,2763.3,0.90449]
[1643793272906,1.05681682,2763.9,2763.3,1.20449]
[1643793273508,0.37583089,2763.9,2763.3,1.20449]
[1643793275150,0.37583089,2763.9,2763.1,1.4551]
[1643793275349,0.37583089,2763.9,2763.1,2.35963]
[1643793276351,0.37583089,2763.9,2763.1,2.54053]
[1643793277555,1.05681682,2763.9,2763.1,2.35963]
[1643793277955,1.75197077,2763.9,2763.1,2.35963]
[1643793278325,2.93990698,2763.9,2763.1,2.35963]
[1643793278521,1.05681682,2763.9,2763.1,2.35963]
[1643793279020,1.5312635,2763.8,2763.1,2.35963]
[1643793280621,0.35589818,2763.4,2763.1,2.35963]
[1643793280826,0.35589818,2763.4,2763.1,1.20453]
[1643793280827,1.5312635,2763.3,2763.1,1.20453]
[1643793282462,1.5312635,2763.3,2763.1,0.3]
[1643793282668,1.5312635,2763.3,2763.0,0.1809]
[1643793282669,3.43704956,2763.3,2763.0,0.1809]
[1643793282867,3.42841064,2763.2,2762.6,0.4309]
[1643793283065,3.42841064,2763.2,2762.3,0.1809]
[1643793283468,3.42841064,2763.2,2762.0,11.76080997]
[1643793283469,3.42841064,2763.2,2762.1,0.1809]
[1643793283665,0.40073333,2762.3,2762.1,0.1809]
[1643793284066,0.90497,2762.8,2762.1,0.1809]
[1643793284263,1.53161108,2762.7,2762.1,1.1809]
[1643793284663,1.53161108,2762.6,2762.1,1.1809]
[1643793284864,1.91305182,2762.8,2762.1,1.0]
[1643793285064,0.36816597,2762.2,2762.1,1.0]
[1643793285464,0.36816597,2762.2,2762.1,1.18091]
[1643793285802,1.91305182,2762.8,2762.1,1.18091]
[1643793286012,1.53162559,2762.7,2762.1,1.18091]
[1643793286804,1.53162559,2762.7,2762.1,0.18091]
[1643793287004,0.90499,2762.9,2762.0,3.49779997]
[1643793287005,1.53162559,2762.6,2762.0,3.49779997]
[1643793287210,2.83671147,2762.9,2762.0,3.49779997]
[1643793287412,1.5316449,2762.8,2762.0,4.40269997]
[1643793287609,0.1809,2763.0,2762.0,4.40269997]
[1643793287811,1.53158776,2762.9,2762.0,3.49779997]
[1643793288008,1.53158776,2762.8,2762.3,0.8212918]
[1643793288207,0.1809,2763.1,2762.3,0.8212918]
[1643793288208,0.1809,2763.1,2762.3,1.1212918]
[1643793288408,0.34389689,2762.8,2762.3,1.1212918]
[1643793289009,0.34274438,2762.8,2762.3,1.1212918]
[1643793289409,0.34274438,2762.8,2762.3,0.3]
[1643793289670,0.1809,2763.2,2762.4,0.8143365]
[1643793289871,1.53155793,2763.1,2762.4,0.8143365]
[1643793290072,1.53155793,2763.1,2762.5,0.3]
[1643793292673,0.40394032,2762.9,2762.5,0.3]
[1643793293311,1.53163168,2762.8,2762.5,0.3]
[1643793294510,1.53163168,2762.8,2762.3,0.8144189]
[1643793295411,1.53163168,2762.8,2762.4,0.90485]
[1643793298461,0.1809,2763.3,2762.4,2.5335443]
[1643793298662,1.53155983,2763.2,2762.6,1.7190686]
[1643793299063,1.53155983,2763.2,2762.7,1.31487419]
[1643793299263,1.53155983,2763.1,2762.6,0.8142986]
[1643793299463,0.1809,2763.5,2762.9,1.23367683]
[1643793299663,1.53145242,2763.4,2763.0,0.8142025]
[1643793299866,9.1857975,2763.0,2762.9,0.89643432]
[1643793300463,9.14768617,2763.0,2762.8,0.90468]
[1643793301311,9.14768617,2763.0,2762.8,2.7800175]
[1643793301515,9.14768617,2763.0,2762.9,0.68225737]
[1643793303112,9.14768617,2763.0,2762.9,0.86315737]
[1643793303310,9.14768617,2763.0,2762.9,2.1794947]
[1643793303512,9.14768617,2763.0,2762.9,0.86315737]
[1643793305661,9.1295917,2763.0,2762.9,5.14406737]
[1643793306260,9.1295917,2763.0,2762.9,0.86315737]
[1643793307768,0.1809,2764.0,2763.0,7.61205908]
[1643793307969,1.05189918,2764.9,2763.8,1.0489355]
[1643793307970,0.1809,2764.1,2763.8,1.0489355]
[1643793308167,1.53088146,2764.0,2763.8,1.8628026]
[1643793308414,0.1809,2764.6,2763.8,1.8628026]
[1643793308615,1.53086476,2764.5,2763.8,1.8628026]
[1643793308816,1.71156476,2764.4,2763.8,1.8628026]
[1643793309014,1.53086476,2764.3,2763.8,1.8628026]
[1643793309214,1.71156476,2764.2,2763.8,1.8628026]
[1643793309423,0.1807,2764.8,2764.4,1.50841594]
[1643793309617,1.53077526,2764.7,2764.4,1.50841594]
[1643793309827,3.21007324,2765.4,2764.4,1.50841594]
[1643793309828,0.1807,2765.0,2764.4,1.50841594]
[1643793310017,3.7019,2765.9,2764.4,1.50841594]
[1643793310018,1.5305329,2764.9,2764.5,1.6828]
[1643793310215,2.68098593,2765.6,2764.6,0.42864785]
[1643793310419,1.71106302,2765.5,2764.6,1.85560785]
[1643793310616,1.53036302,2765.4,2764.6,1.85560785]
[1643793310819,1.53036302,2765.4,2764.8,0.69008181]
[1643793311023,1.53036302,2765.4,2765.0,0.25]
[1643793311222,1.53036302,2765.4,2765.0,1.0635246]
[1643793311424,1.53036302,2765.3,2765.1,1.35067401]
[1643793311624,2.1807,2765.8,2765.1,1.35067401]
[1643793311928,1.53028604,2765.7,2765.1,0.90392]
[1643793312188,1.53028604,2765.7,2765.0,2.05778]
[1643793312587,1.53028604,2765.8,2765.2,1.7173036]
[1643793312791,1.71098604,2765.7,2765.2,0.08494841]
[1643793312989,0.40057164,2765.4,2765.1,1.6268471]
[1643793313287,1.53028604,2765.3,2765.1,1.6268471]
[1643793313688,1.53028604,2765.3,2765.0,0.25]
[1643793313888,3.4320919,2765.3,2765.0,0.25]
[1643793314091,1.53028604,2765.2,2765.0,0.25]
[1643793314396,2.97303897,2765.1,2765.0,0.25]
[1643793314596,3.66185309,2765.1,2765.0,0.25]
[1643793314787,3.66185309,2765.1,2765.0,1.75841594]
[1643793315188,3.84277309,2765.1,2765.0,1.75841594]
[1643793315388,3.66185309,2765.1,2765.0,1.75841594]
[1643793315806,1.71098604,2765.1,2765.0,1.75841594]
[1643793316909,1.53028604,2765.1,2765.0,1.75841594]
[1643793317309,0.1807,2765.3,2765.0,1.75841594]
[1643793317310,1.53028604,2765.2,2765.0,1.75841594]
[1643793317511,0.1807,2765.3,2765.0,1.75841594]
[1643793317816,1.53052066,2765.2,2765.0,1.75841594]
[1643793318210,0.1807,2765.8,2765.0,1.75841594]
[1643793318410,1.53042006,2765.7,2765.0,1.75841594]
[1643793318812,1.53042006,2765.6,2765.1,0.8135715]
[1643793319010,1.53042006,2765.5,2765.1,0.8135715]
[1643793319313,0.35935861,2765.7,2765.1,0.8135715]
[1643793319561,1.53041694,2765.6,2765.1,0.8135715]
[1643793319958,1.53041694,2765.6,2765.4,0.75420797]
[1643793320162,1.53041694,2765.6,2765.4,1.50841594]
[1643793322467,0.35935861,2765.7,2765.4,1.50841594]
[1643793322867,4.17325087,2766.0,2765.4,1.50841594]
[1643793323068,1.53040678,2765.9,2765.5,0.25]
[1643793323914,1.53040678,2765.8,2765.5,0.25]
[1643793324320,0.01261518,2766.2,2765.5,0.25]
[1643793324521,1.53031536,2766.1,2765.5,0.25]
[1643793325122,0.44350349,2766.0,2765.5,0.25]
[1643793325320,1.53031536,2765.9,2765.8,1.50841594]
[1643793326521,0.01261518,2766.2,2765.8,1.50841594]
[1643793326722,1.5302297,2766.1,2765.8,1.50841594]
[1643793326920,0.13819997,2766.3,2765.8,1.50841594]
[1643793327162,1.54284397,2766.2,2765.8,1.50841594]
[1643793327364,3.44165857,2766.1,2765.8,1.50841594]
[1643793327568,0.35713488,2766.0,2765.8,1.50841594]
[1643793328362,6.0879753,2765.9,2765.8,1.50841594]
[1643793328564,3.4379753,2765.9,2765.8,1.50841594]
[1643793328963,0.35713488,2766.0,2765.8,1.50841594]
[1643793330364,0.35713488,2766.0,2765.5,0.25]
[1643793330565,0.35713488,2766.0,2765.8,0.75420797]
[1643793330816,0.35713488,2766.0,2765.8,1.50841594]
[1643793332830,0.35713488,2766.0,2765.5,0.12612226]
[1643793332831,5.05443425,2765.9,2765.5,0.12612226]
[1643793333027,5.05443425,2765.9,2765.2,0.1807]
[1643793333224,5.05443425,2765.9,2765.0,0.1807]
[1643793333225,1.90443425,2765.9,2765.0,0.1807]
[1643793333626,0.75433108,2765.5,2765.0,0.1807]
[1643793333835,1.89759036,2765.4,2765.0,0.1807]
[1643793334031,1.89759036,2765.4,2764.7,0.1807]
[1643793334226,1.89759036,2765.4,2764.5,0.1807]
[1643793334665,0.32814006,2765.3,2764.5,0.1807]
[1643793334869,2.01211884,2765.2,2764.5,0.1807]
[1643793335865,0.19363856,2765.5,2764.5,0.1807]
[1643793336068,0.3,2765.4,2764.5,0.1807]
[1643793336267,0.01293856,2765.5,2764.6,1.7177572]
[1643793336469,5.389995,2765.7,2764.8,1.6271866]
[1643793336470,1.3972,2765.7,2764.8,1.6271866]
[1643793336670,1.53039902,2765.6,2764.8,1.6271866]
[1643793336872,0.82629943,2765.6,2764.8,1.9271866]
[1643793337277,3.40941291,2765.5,2764.9,0.8136016]
[1643793337474,3.40941291,2765.5,2765.0,0.3]
[1643793337475,1.87897517,2765.5,2765.0,0.3]
[1643793337674,1.89359267,2765.5,2765.0,0.3]
[1643793337874,1.12629943,2765.6,2765.0,0.3]
[1643793338077,1.53040277,2765.5,2765.0,0.3]
[1643793338314,0.3943075,2765.4,2765.0,0.3]
[1643793338717,0.37834659,2764.9,2764.8,1.1136714]
[1643793339521,1.12629943,2765.6,2764.8,1.1136714]